Cogmind - Beta 16 @@@ ROGUE MODE // 2026.02.09 @ 16:44:00 Player: Voldy Result: Destroyed by D-53 Grenadier with Mini Grenade Launcher Performance ------------- Evolutions (0) 0 Regions Visited (2) 400 Robots Destroyed (7) 35 Value Destroyed (189) 189 Prototype IDs (0) 0 Alien Tech Used (0) 0 Bonus (0) 0 TOTAL SCORE: 624 Bonus ------- None Cogmind --------- Core Integrity 0/250 Matter 232/300 Energy 158/160 System Corruption 1% Temperature Cool (0) Movement Treading (160) Location -10/Mines Parts ------- > --- POWER (1) -------- Light Nuclear Core > --- PROPULSION (2) --- Light Treads Light Treads > --- UTILITY (2) ------ Small Storage Unit Seismic Detector > --- WEAPON (2) ------- (None) > --- INVENTORY (8) ---- Light Ion Engine High-capacity Battery (250) Peak State ------------ > --- POWER ------------ Ion Engine > --- PROPULSION ------- Aluminum Leg Aluminum Leg > --- UTILITY ---------- Heat Sink Small Storage Unit > --- WEAPON ----------- Assault Rifle Light Assault Rifle > --- INVENTORY -------- Ion Engine Light Nuclear Core Light Treads Light Treads Light Treads High-capacity Battery Seismic Detector Small Laser [Rating: 8] Favorites ----------- Power Ion Engine Engine Ion Engine Power Core Light Nuclear Core Propulsion Aluminum Leg Treads Light Treads Leg Aluminum Leg Utility Small Storage Unit Device Heat Sink Storage Small Storage Unit Weapon Light Assault Rifle Energy Gun Small Laser Ballistic Gun Light Assault Rifle Build | -11 -10 -10 ------- Run | Yrd Mat Min Slots Evolved . | . . . Power . | . . . Propulsion . | . . . Utility . | . . . Weapon . | . . . Parts Attached 9 | . 2 7 Power 3 | . 1 2 Engine 2 | . 1 1 Core 1 | . . 1 Reactor . | . . . Propulsion 3 | . . 3 Treads 3 | . . 3 Leg . | . . . Wheel . | . . . Hover . | . . . Flight . | . . . Utility 2 | . 1 1 Device 2 | . 1 1 Storage . | . . . Processor . | . . . Hackware . | . . . Protection . | . . . Artifact . | . . . Weapon 1 | . . 1 Energy Gun 1 | . . 1 Energy Cannon . | . . . Ballistic Gun . | . . . Ballistic Cannon . | . . . Launcher . | . . . Special Weapon . | . . . Impact Weapon . | . . . Slashing Weapon . | . . . Piercing Weapon . | . . . Special Melee Weapon . | . . . Unidentified Prototypes . | . . . Parts Lost 7 | . . 7 Power 1 | . . 1 Propulsion 2 | . . 2 Utility 1 | . . 1 Weapon 3 | . . 3 Highest Loss Streak 7 | . . 7 To Critical Strikes . | . . . Average Backups 7 | . 7 7 Power 1 | . 1 1 Propulsion 3 | . 3 2 Utility 1 | . 1 1 Weapon 1 | . 1 . Tool/Special . | . . . Unused Backups 16 | . 10 6 Power 3 | . 2 1 Propulsion 6 | . 4 2 Utility 2 | . 1 1 Weapon 5 | . 3 2 Tool/Special . | . . . Average Slot Usage (%) 96 | . 99 91 Engine 13 | . 14 11 Leg 26 | . 28 22 Device 12 | . 13 11 Storage 14 | . 14 14 Ballistic Gun 26 | . 28 23 Peak Build Rating 8 | . 8 8 Average Rating 7 | . 7 7 On Entrance 6 | 6 6 8 Avg Prop Armor Cover (%) 23 | . . 23 Naked Turns . | . . . Heaviest Build 14 | 11 14 14 Greatest Support 20 | 20 20 20 Greatest Overweight (x) 3 | . . 3 Average Overweight (x) . | . . . Largest Inventory Capacity 8 | . 8 8 Average Capacity 8 | . 8 8 Most Carried 8 | . 8 8 Average Carried 7 | . 7 7 Final Capacity 8 | 8 8 8 Final Carried 8 | 6 8 2 Class Distribution -------------------- 100% | Mutant Dominant Class ---------------- Mutant | -10/Materials Mutant | -10/Mines Resources | -11 -10 -10 ----------- Run | Yrd Mat Min Matter Collected 330 | 200 101 29 Remotely . | . . . Salvage Created 242 | . 196 46 Parts 9 | . 7 2 Haulers Intercepted . | . . . Recyclers Shooed . | . . . Parts Field Recycled . | . . . Retrieved Matter . | . . . Parts Self-Destructed . | . . . Prevented . | . . . Parts Restored . | . . . Kills | -11 -10 -10 ------- Run | Yrd Mat Min Combat Hostiles Destroyed 7 | . 4 3 Guns 7 | . 4 3 Classes Destroyed 4 | . 2 2 Tunneler 1 | . 1 . Swarmer 2 | . . 2 Grunt 4 | . 4 . Assembled 1 | . . 1 Best Kill Streak 2 | . 1 2 Combat Bots Only 2 | . 1 2 Max Kills in Single Turn 2 | . 1 2 Gunslinging . | . . . Exploded . | . . . Melee . | . . . Uniques/NPCs Destroyed . | . . . Combat | -11 -10 -10 -------- Run | Yrd Mat Min Hostile Shots Fired 99 | . 30 69 Missed 26 | . 11 15 Hits 73 | . 19 54 Melee 16 | . . 16 Projectile 57 | . 19 38 AOE 4 | . . 4 Critical Strikes 3 | . 1 2 Part Disruptions 1 | . . 1 Damage Taken 1163 | . 261 902 Core 255 | . 44 211 Absorbed by Shields . | . . . Core Remaining (%) 100 | 100 . . Volleys Fired 35 | . 25 10 Largest 2 | . 2 2 Hottest 40 | . 40 40 Shots Fired 70 | . 50 20 Gun 70 | . 50 20 Cannon . | . . . Launcher . | . . . Special . | . . . Kinetic 70 | . 50 20 Thermal . | . . . Explosive . | . . . Electromagnetic . | . . . Robot Hit Streak 13 | . 13 4 Robot Miss Streak 4 | . 3 4 Penetration Max . | . . . Secondary Targets . | . . . Shots Hit Robots 45 | . 35 10 Core Hits 19 | . 12 7 Critical Kills . | . . . Critical Parts Destroyed . | . . . Critical Strikes . | . . . Melee Attacks . | . . . Impact . | . . . Slashing . | . . . Piercing . | . . . Sneak Attacks . | . . . Combat Hostiles . | . . . Follow-up Attacks . | . . . Damage Inflicted 477 | . 354 123 Guns 470 | . 350 120 Cannons . | . . . Explosions . | . . . Melee . | . . . Ramming 7 | . 4 3 Kinetic 470 | . 350 120 Thermal . | . . . Explosive . | . . . Electromagnetic . | . . . Impact . | . . . Slashing . | . . . Piercing . | . . . Highest Corruption 1 | . 1 1 Average Corruption 1 | . 1 1 Corruption Purged . | . . . Corruption Blocked . | . . . Effects 1 | . . 1 Matter Fused 1 | . . 1 Overload Shots . | . . . Overflow Damage . | . . . Projectiles . | . . . Explosions . | . . . Melee . | . . . Knockbacks . | . . . Impact . | . . . Kinetic . | . . . Secondary . | . . . Self-Inflicted Damage . | . . . Shots . | . . . Rammed . | . . . Targets Rammed 2 | . 1 1 Kicked 2 | . 1 1 Crushed . | . . . Highest Temperature 45 | . . 45 Average Temperature 17 | . . 17 Received Heat Transfer 428 | . 168 260 Siege Activations . | . . . Martial Activations . | . . . Shielding Activations . | . . . Robots Disrupted . | . . . Combat Hostiles . | . . . Robots Corrupted . | . . . Combat Hostiles . | . . . Parts Fried . | . . . Impact Corruptions . | . . . Robots Melted . | . . . Combat Hostiles . | . . . Parts Melted . | . . . Heat Transferred . | . . . Parts Sabotaged . | . . . Parts Stolen . | . . . Parts Stripped . | . . . Power Chain Reactions . | . . . Alert | -11 -10 -10 ------- Run | Yrd Mat Min Maximum Alert Level . | . . . Low Security (%) 100 | . 100 100 Level 1 . | . . . Level 2 . | . . . Level 3 . | . . . Level 4 . | . . . Level 5 . | . . . High Security . | . . . Max Security . | . . . Peak Influence 55 | . 55 40 Initial 1 | . . 1 Average 10 | . 13 5 Influence Increases 185 | . 145 40 Destroy 0b10 Robot/C 120 | . 80 40 Destroy 0b10 Robot/NC 5 | . 5 . Destroy Leader 30 | . 30 . Lose Combat Pursuer 30 | . 30 . Influence Decreases 185 | . 140 45 Entered New Map 4 | . . 4 Time Decay 171 | . 140 31 Lost Part 10 | . . 10 Squads Dispatched 1 | . 1 . Investigation . | . . . Extermination . | . . . Reinforcement 1 | . 1 . Assault . | . . . Garrison . | . . . Intercept . | . . . Searches Triggered . | . . . Construction Impeded . | . . . Haulers Reinforced . | . . . Active Scanning Responses . | . . . Cargo Convoy Interrupts . | . . . Stealth | -11 -10 -10 --------- Run | Yrd Mat Min Distress Signals . | . . . Communications Jammed . | . . . Distress Signals . | . . . Times Spotted 23 | . 6 17 Peak Tracking Total 13 | . 3 13 Tactical Retreats 5 | . 2 3 Traps | -11 -10 -10 ------- Run | Yrd Mat Min Traps Triggered 1 | . 1 . Indirectly . | . . . Trap Hack Attempts . | . . . Triggered . | . . . Disarmed . | . . . Reprogrammed . | . . . Reused . | . . . Traps Extracted . | . . . Installed . | . . . Triggered . | . . . Machines | -11 -10 -10 ---------- Run | Yrd Mat Min Machines Disabled . | . . . Max in Single Turn . | . . . Machines Repaired . | . . . Machines Dismantled . | . . . Machines Sabotaged . | . . . Overloaded Fab Kills . | . . . Hacking | -11 -10 -10 --------- Run | Yrd Mat Min Machines Accessed . | . . . Terminals . | . . . Fabricators . | . . . Repair Stations . | . . . Recycling Units . | . . . Scanalyzers . | . . . Garrison Access . | . . . Total Hacks . | . . . Successful . | . . . Failed . | . . . Catastrophic . | . . . Database Lockouts . | . . . Manual . | . . . Terminals . | . . . Fabricators . | . . . Repair Stations . | . . . Recycling Units . | . . . Scanalyzers . | . . . Garrison Access . | . . . Terminal Hacks . | . . . Fabricator Hacks . | . . . Repair Station Hacks . | . . . Recycling Unit Hacks . | . . . Scanalyzer . | . . . Garrison Access Hacks . | . . . Unauthorized Hacks . | . . . Terminals . | . . . Fabricators . | . . . Repair Stations . | . . . Recycling Units . | . . . Scanalyzers . | . . . Garrison Access . | . . . Data Cores Recovered . | . . . Used . | . . . Hacking Detections . | . . . Full Trace Events . | . . . Feedback Events . | . . . Feedback Blocked . | . . . Robot Schematics Acquired . | . . . Robots Built . | . . . Authchips . | . . . Time . | . . . Total Robot Build Rating . | . . . Part Schematics Acquired . | . . . Parts Built . | . . . Authchips . | . . . Time . | . . . Total Part Build Rating . | . . . Part Studies Acquired . | . . . Parts Repaired . | . . . Time . | . . . Parts Recycled . | . . . Recycled Matter . | . . . Retrieved Matter . | . . . Retrieved Components . | . . . Parts Scanalyzed . | . . . Part Schematics Acquired . | . . . Parts Damaged . | . . . Bothacking | -11 -10 -10 ------------ Run | Yrd Mat Min Used RIF Installer . | . . . Robots Hacked . | . . . Non-combat . | . . . Combat . | . . . Robot Hacks Applied . | . . . Relay Couplers Released . | . . . Fabnet Peak Effective % . | . . . Robots Rewired . | . . . Allies Hacked . | . . . Hacks Repelled . | . . . Allies | -11 -10 -10 -------- Run | Yrd Mat Min Total Allies . | . . . Largest Group . | . . . Highest-Rated Group . | . . . Highest-Rated Ally . | . . . Total Orders . | . . . Ally Attacks . | . . . Total Damage . | . . . Kills . | . . . Allies Corrupted . | . . . Allies Melted . | . . . Intel | -11 -10 -10 ------- Run | Yrd Mat Min Active Infowar (turns) 2 | . . 2 Seismic 2 | . . 2 Robot Analysis Total . | . . . Derelict Logs Recovered . | . . . Drone Launches . | . . . Drone Recoveries . | . . . Exploration | -11 -10 -10 ------------- Run | Yrd Mat Min Turns Passed 814 | . 558 256 Spaces Moved 507 | 1 335 171 Core 6 | . . 6 Treads 16 | . . 16 Legs 485 | 1 335 149 Wheels . | . . . Hover . | . . . Flight . | . . . Fastest Speed 120 | 120 120 120 Average Speed 122 | 120 120 126 Slowest Speed 200 | 120 120 200 Overloaded Moves . | . . . Propulsion Burnouts . | . . . Robots Hopped . | . . . Potential Cave-ins . | . . . Cave-ins Triggered . | . . . Exploration Rate (%) 37 | 2 46 65 Regions Visited 2 Branch Regions 1 Pre-discovered Areas . | . . . Known Exits Taken . | . . . Unknown Exits Taken 2 | 1 1 . Scrap Searched . | . . . Spaces Dug . | . . . Terrain Destroyed . | . . . Melee . | . . . Projectile . | . . . AOE . | . . . Terrain Rammed . | . . . Walls Destroyed . | . . . Machines Disabled . | . . . Actions | -11 -10 -10 --------- Run | Yrd Mat Min Total 641 | . 448 193 Wait 75 | . 73 2 Move 505 | . 334 171 Hop . | . . . Pick Up 9 | . 8 1 Fast Attach . | . . . Attach 9 | . 2 7 Detach . | . . . Swap . | . . . Drop 6 | . 5 1 Fire 35 | . 25 10 Melee . | . . . Ram . | . . . Kick 2 | . 1 1 Crush . | . . . Escape Stasis . | . . . Rewire . | . . . Trap . | . . . Miscellaneous . | . . . Route ------- -11/Scrapyard -10/Materials (discovered 3 exits: [*Mat] / [*Min x2]) -10/Mines (discovered 1 exit: [*Mat]) History --------- Turn | Location | Event 1 | -11/Scrapyard | Discovered new exit (range 0) 1 | -11/Scrapyard | Entered Materials 144 | -10/Materials | Discovered new exit (range 11) 179 | -10/Materials | Discovered new exit (range 10) 315 | -10/Materials | Build established: Mutant 408 | -10/Materials | Discovered new exit (range 15) 559 | -10/Materials | Entered Mines 579 | -10/Mines | Discovered new exit (range 10) 660 | -10/Mines | Found a hidden stash of uninstalled traps 747 | -10/Mines | Assembled infested the area 752 | -10/Mines | Assisted by a Guerilla fighting off Assembled 772 | -10/Mines | Core integrity fell below 50% 791 | -10/Mines | Core integrity fell below 20% 815 | -10/Mines | Destroyed by D-53 Grenadier with Mini Grenade Launcher Last Messages --------------- 00796_ The unstable cave ceiling collapses. 00797_ K-01 Serf collects debris. 00799_ The unstable cave ceiling collapses. 00800_ as-25888 sneak attacks. 00800_ K-01 Serf system corrupted by crushing effect. 00801_ K-01 Serf system terminally corrupted. 00802_ Sml. Laser destroyed. 00803_ The unstable cave ceiling collapses. 00803_ as-11440 destroyed. 00804_ as-25888 destroyed. 00804_ as-16304 destroyed. 00804_ as-89825 destroyed. 00811_ as-49316 destroyed. 00812_ U-05 Engineer builds a Wall. 00812_ D-53 Grenadier system corrupted by crushing effect. 00813_ D-53 Grenadier misfires. 00813_ as-04929 destroyed. 00814_ U-05 Engineer lays Concrete. 00815_ as-08143 destroyed. 00815_ U-05 Engineer lays Concrete. Map ----- +----------------------------------------------------+ | | | ?????????????????????????????????????????????????? | | ?????????????????????????????????????????????????? | | ?????????????????????????????????????????????????? | | ?????????????????????????????????????????????????? | | ?????????????????????????????????????????????????? | | ?????????????????????????????????????????????????? | | ?????????????????????????????????????????????????? | | ?????????????????????????????????????????????????? | | ???????????????????????????????????????????###???? | | ?????????????????????????????????#?????#### ##??? | | ??????????????????????????# ###### ##### #??? | | ??????????????????????????# #???? | | ?????????????????????????????????# #????? | | ?????????????????????????????????###### ##????? | | ??????????????????????????????????????## ##????? | | ???????????????????????????????????????## ###??? | | ???????????????????????????????????####?## ##?? | | ???????????????????????########????# #?## ##? | | ???????????????????????# # #????# ####% ## | | ???????????????????????? #?????# ###= # | | ???????????????????????## ##?????# ## # | | ??????????? ????????# #???????# ## | | ?????????? ????# ##??????## ##? | | ?????????????# # #???????# ##?? | | ??????????????# @ #??????## ##??? | | ??????????????# ###???? | | ??????????????# ##?????? | | ???????????? d #??????? | | ???????????# d ##?????? | | ???????????? ## # ###???? | | ???????????????### # # ##??? | | ?????????????????# u # ##?? | | ?????????????????# # #?# #?? | | ?????????????????# u#####???#### """ ##### #?? | | ?????????????????# #????????## """ ???## ##? | | ?????????????????# #???????? """ ???#= ## | | ????????????????## ##?????? ??## %=# | | ???????????????## ##????# ## #??#= [ | | ????????????#### ##???## #???? #??##=* | | ???????????## ###??# #????? ##???# | | ?????####??# ##?# #????? ###????# | | ????## #### #?# #??????#???????## | | ?#### ## #?# #???????????????# # | | ?# #????????# #???????????????# # | | ?# ## ##???????# #???????????????# # | | ?# ### ##??????# #???????????????# # | | ?# #?## ### #### ######??????????# # | | ## ##### ## #??????????# # | | # ###### #### #######????# # | +----------------------------------------------------+ Best States ------------- Heat Dissipation 35 Energy Generation 14 Energy Capacity 250 Matter Stores 300 Matter Capacity 300 Sight Range 16 Terrain Scan Density 10 Evasion (%) 55 Recoil Reduction 1 Item Schematics ----------------- None Robot Schematics ------------------ None Fabricated ------------ Nothing Repaired ---------- Nothing Studied --------- None Alien Tech Used ----------------- None Achievements -------------- None Challenges ------------ None Game ------ Seed HelicalStasisVibroblade Manual? 0 Play Time 00:06:36 Cumulative 13.7 hours Start 2026.02.09 @ 16:37:06 End 2026.02.09 @ 16:44:00 Sessions 1 Manual Loads 0 Difficulty Rogue Special Mode None Game No. 31 Rogue 22 Adventurer 9 Explorer 0 Win Type - Total 0 Types 0/0/0/0/0/0/0/0/0/0 Lore% 16 Gallery% 19 Achievement% 16 Wizard Run 0 Options --------- Layout 0 ASCII 0 Keyboard 1 Movement Numpad Keybinds 0 Fullscreen 2 Font 18/SmallcapsGlow Map View 76x50 Zoom Use 0% Tactical HUD 1 Map Filters NONE Filters NONE Steam 1 RUN: aef68d35-4538-49e3-a9e4-08a4452ca845